Cogmind - Beta 15 @@@ ROGUE MODE // 2025.07.24 @ 23:11:19 Player: SnailSD Result: Destroyed by S-27 Virus with Autogun Performance ------------- Evolutions (5) 2500 Regions Visited (7) 1400 Robots Destroyed (104) 520 Value Destroyed (3110) 3110 Prototype IDs (3) 60 Alien Tech Used (0) 0 Bonus (153) 153 TOTAL SCORE: 7743 Bonus ------- High Alert Combat Kills 78 Follower Combat Kills 75 Cogmind --------- Core Integrity 0/1000 Matter 190/300 Energy 99/100 System Corruption 3% Temperature Cool (0) Movement Core (50) Location -5/Factory Parts ------- > --- POWER (2) -------- (None) > --- PROPULSION (5) --- (None) > --- UTILITY (6) ------ (None) > --- WEAPON (4) ------- (None) > --- INVENTORY (5) ---- Wheel Medium Storage Unit Improved Datajack Katana Katana Peak State ------------ > --- POWER ------------ Deuterium Engine Enhanced Nuclear Core > --- PROPULSION ------- Wheel Wheel Wheel Wheel Wheel > --- UTILITY ---------- Medium Storage Unit Weight Redist. System Advanced Sensor Array Core Analyzer Microactuators Hardened Medium Armor Plating > --- WEAPON ----------- Katana Katana Katana Katana > --- INVENTORY -------- Carbon-fiber Leg Wheel Medium Storage Unit Improved EM Pulse Cannon Proton Cannon Gauss Cannon Rocket Launcher Improved Datajack Power Maul Katana [Rating: 47] Favorites ----------- Power Light Ion Engine Engine Light Ion Engine Power Core Enhanced Nuclear Core Propulsion Wheel Treads Light Treads Leg Aluminum Leg Wheel Wheel Utility Medium Storage Unit Device Weight Redist. System Storage Medium Storage Unit Processor Core Analyzer Protection Hardened Medium Armor Plating Weapon Katana Energy Gun Heavy Particle Gun Energy Cannon Improved EM Pulse Cannon Ballistic Gun Assault Rifle Ballistic Cannon Flak Cannon Launcher Rocket Launcher Impact Weapon Power Maul Slashing Weapon Katana Build | -11 -10 -10 -9 -8 -7 -6 -5 ------- Run | Yrd Mat Min Mat Mat Fac Fac Fac Slots Evolved 10 | . . . 2 2 2 2 2 Power 1 | . . . . . . . 1 Propulsion 3 | . . . . 1 1 1 . Utility 4 | . . . . 1 1 1 1 Weapon 2 | . . . 2 . . . . Parts Attached 78 | 8 . 5 18 18 5 2 22 Power 11 | 1 . 1 2 3 1 . 3 Engine 9 | 1 . 1 2 2 1 . 2 Core 2 | . . . . 1 . . 1 Reactor . | . . . . . . . . Propulsion 30 | 2 . 2 6 8 2 1 9 Treads 6 | 2 . . 2 . . . 2 Leg 8 | . . 2 2 4 . . . Wheel 16 | . . . 2 4 2 1 7 Hover . | . . . . . . . . Flight . | . . . . . . . . Utility 14 | 2 . 1 3 4 2 1 1 Device 4 | 1 . . . . 2 1 . Storage 3 | 1 . 1 1 . . . . Processor 1 | . . . . . . . 1 Hackware . | . . . . . . . . Protection 6 | . . . 2 4 . . . Artifact . | . . . . . . . . Weapon 23 | 3 . 1 7 3 . . 9 Energy Gun 1 | . . . . 1 . . . Energy Cannon 3 | . . . . . . . 3 Ballistic Gun 7 | 3 . . . 1 . . 3 Ballistic Cannon 4 | . . . 3 . . . 1 Launcher 2 | . . 1 . 1 . . . Special Weapon . | . . . . . . . . Impact Weapon 1 | . . . . . . . 1 Slashing Weapon 5 | . . . 4 . . . 1 Piercing Weapon . | . . . . . . . . Special Melee Weapon . | . . . . . . . . Unidentified Prototypes 3 | . . . . 3 . . . Parts Lost 50 | . . 6 2 8 3 . 31 Power 9 | . . 1 2 1 1 . 4 Propulsion 22 | . . 2 . 5 1 . 14 Utility 7 | . . . . 2 1 . 4 Weapon 12 | . . 3 . . . . 9 Highest Loss Streak 13 | . . 6 1 4 3 . 13 To Critical Strikes . | . . . . . . . . Average Backups 8 | 4 7 4 7 9 9 10 7 Power 1 | 1 2 1 . 1 1 1 . Propulsion . | 1 2 1 . . 1 2 1 Utility 2 | . 1 1 2 3 1 1 1 Weapon 3 | . 1 1 2 4 4 5 4 Tool/Special . | . . . . . . . . Unused Backups 20 | . . 2 8 5 1 . 4 Power 3 | . . 1 . 2 . . . Propulsion 3 | . . . 1 . . . 2 Utility 8 | . . 1 5 . 1 . 1 Weapon 4 | . . . 1 3 . . . Tool/Special 2 | . . . 1 . . . 1 Average Slot Usage (%) 88 | . 100 74 95 89 94 94 61 Engine 7 | . 14 10 10 6 3 6 2 Core 1 | . . . . 1 3 . 3 Treads 3 | . 28 14 6 . . . 1 Leg 8 | . . 9 8 17 . . . Wheel 10 | . . . 5 6 28 28 14 Device 4 | . 14 7 . . 7 18 10 Storage 8 | . 14 14 11 9 7 6 3 Protection 8 | . . . 9 11 11 6 1 Ballistic Gun 2 | . 28 15 3 . . . . Ballistic Cannon 2 | . . . 9 . . . . Slashing Weapon 27 | . . . 29 35 30 26 13 Peak Build Rating 47 | 9 9 9 20 33 33 38 47 Average Rating 23 | 6 9 5 17 26 30 36 30 On Entrance 17 | . 9 9 5 20 29 32 38 Naked Turns 98 | . . 8 . . . . 90 Heaviest Build 50 | 15 15 15 28 43 42 38 50 Greatest Support 56 | 40 40 40 40 42 46 46 56 Greatest Overweight (x) 8 | 1 . . 1 8 1 . 2 Average Overweight (x) . | . . . . . . . . Largest Inventory Capacity 10 | 8 8 8 10 10 10 10 10 Average Capacity 9 | 7 8 7 8 10 10 10 8 Most Carried 10 | 6 8 8 10 10 10 10 10 Average Carried 8 | 4 7 4 7 9 9 10 7 Final Capacity 10 | 8 8 8 10 10 10 10 5 Final Carried 10 | 6 8 1 10 10 10 10 5 Class Distribution -------------------- 72% | Mutant 10% | Scavenger-Gladiator 7% | Scavenger-Mutant 5% | Tank 3% | Gunner Dominant Class ---------------- Mutant | -10/Materials Mutant | -10/Mines Mutant | -9/Materials Mutant | -8/Materials Scavenger-Mutant | -7/Factory Scavenger-Gladiator | -6/Factory Mutant | -5/Factory Resources | -11 -10 -10 -9 -8 -7 -6 -5 ----------- Run | Yrd Mat Min Mat Mat Fac Fac Fac Matter Collected 1356 | 316 90 . 405 303 50 30 162 Remotely . | . . . . . . . . Salvage Created 3757 | 118 . 57 679 1556 543 195 609 Parts 223 | 15 . 6 47 78 29 3 45 Haulers Intercepted 6 | . . . 1 3 2 . . Recyclers Shooed 1 | . . . . . . . 1 Parts Field Recycled . | . . . . . . . . Retrieved Matter . | . . . . . . . . Parts Self-Destructed . | . . . . . . . . Prevented . | . . . . . . . . Kills | -11 -10 -10 -9 -8 -7 -6 -5 ------- Run | Yrd Mat Min Mat Mat Fac Fac Fac Combat Hostiles Destroyed 67 | . . 4 14 28 8 . 13 Melee 48 | . . . 11 23 8 . 6 Guns 3 | . . 3 . . . . . Cannons 5 | . . . 3 . . . 2 AOE 11 | . . 1 . 5 . . 5 Classes Destroyed 14 | 3 . 3 5 1 1 . 1 Worker 10 | 1 . . 4 1 . . 4 Builder 10 | . . 1 1 1 2 2 3 Tunneler 5 | 4 . . . 1 . . . Hauler 6 | . . . 1 3 2 . . Recycler 2 | 1 . . . . . 1 . Operator 1 | . . . . 1 . . . Watcher 4 | . . . 1 3 . . . Swarmer 12 | . . 3 4 . . . 5 Grunt 30 | . . . 3 19 6 . 2 Brawler 4 | . . . 1 3 . . . Sentry 14 | . . . 6 6 1 . 1 Hunter 3 | . . . . . 1 . 2 Programmer 3 | . . . . . . . 3 Assembled 1 | . . 1 . . . . . Best Kill Streak 12 | 2 . 5 4 11 3 2 12 Combat Bots Only 7 | . . 4 4 7 3 . 5 Max Kills in Single Turn 3 | 1 . 2 2 2 1 1 3 Gunslinging 1 | . . 1 . . . . . Exploded 3 | . . 1 . 2 . . 3 Melee 2 | . . . 2 1 1 . 1 Uniques/NPCs Destroyed . | . . . . . . . . Combat | -11 -10 -10 -9 -8 -7 -6 -5 -------- Run | Yrd Mat Min Mat Mat Fac Fac Fac Hostile Shots Fired 467 | . . 39 28 148 44 . 208 Missed 127 | . . 7 5 46 16 . 53 Hits 340 | . . 32 23 102 28 . 155 Melee 11 | . . . . 5 . . 6 Projectile 329 | . . 32 23 97 28 . 149 AOE 14 | . . 14 . . . . . Critical Strikes 19 | . . . 1 11 1 . 6 Part Disruptions 1 | . . . . . . . 1 Damage Taken 6159 | . . 795 333 1626 406 . 2999 Core 1532 | . . 147 62 274 49 . 1000 Absorbed by Shields . | . . . . . . . . Core Remaining (%) 78 | 100 . 41 84 50 93 100 . Volleys Fired 73 | 21 4 13 5 8 . . 22 Largest 4 | 2 2 2 4 1 . . 3 Hottest 184 | 40 40 40 131 33 . . 184 Shots Fired 133 | 42 8 20 20 8 . . 35 Gun 78 | 42 8 16 5 . . . 7 Cannon 41 | . . . 15 . . . 26 Launcher 14 | . . 4 . 8 . . 2 Special . | . . . . . . . . Kinetic 109 | 42 8 16 20 . . . 23 Thermal 1 | . . . . . . . 1 Explosive 14 | . . 4 . 8 . . 2 Electromagnetic 9 | . . . . . . . 9 Robot Hit Streak 6 | 4 2 6 5 6 . . 5 Robot Miss Streak 12 | 3 6 2 12 2 . . 3 Penetration Max 1 | . . . . . . . 1 Secondary Targets 2 | . . 2 . . . . . Max Gunslinging Chain 1 | . . 1 . . . . . Shots Hit Robots 257 | 22 2 11 36 97 34 3 52 Core Hits 143 | 7 . 14 27 50 15 1 29 Critical Kills 2 | . . 1 . . . . 1 Critical Parts Destroyed 1 | . . . . . . . 1 Critical Strikes 22 | . . 1 2 10 4 . 5 Destroy 1 | . . 1 . . . . . Blast 1 | . . . . . . . 1 Smash 2 | . . . . . . . 2 Sever 18 | . . . 2 10 4 . 2 Melee Attacks 263 | . . . 32 132 50 3 46 Impact 5 | . . . . . . . 5 Slashing 258 | . . . 32 132 50 3 41 Piercing . | . . . . . . . . Sneak Attacks 27 | . . . 7 8 5 3 4 Combat Hostiles . | . . . . . . . . Follow-up Attacks 74 | . . . 6 39 17 . 12 Damage Inflicted 9715 | 266 25 250 1310 3963 1260 208 2433 Guns 613 | 266 25 111 38 . . . 173 Cannons 561 | . . . 150 . . . 411 Explosions 1850 | . . 139 169 938 . . 604 Melee 6691 | . . . 953 3025 1260 208 1245 Ramming . | . . . . . . . . Kinetic 987 | 266 25 111 188 . . . 397 Thermal 496 | . . . 169 . . . 327 Explosive 1390 | . . 139 . 938 . . 313 Electromagnetic 151 | . . . . . . . 151 Impact 262 | . . . . . . . 262 Slashing 6429 | . . . 953 3025 1260 208 983 Piercing . | . . . . . . . . Highest Corruption 3 | . . . . 1 . . 3 Average Corruption 1 | . . . . 1 . . 2 Corruption Purged . | . . . . . . . . Corruption Blocked . | . . . . . . . . Effects 4 | . . . . 1 . . 3 Message Errors 1 | . . . . 1 . . . Matter Fused 1 | . . . . . . . 1 Heat Flow Errors 1 | . . . . . . . 1 Energy Discharges 1 | . . . . . . . 1 Overload Shots . | . . . . . . . . Overflow Damage 628 | . . . 123 168 38 66 233 Projectiles 21 | . . . . . . . 21 Explosions 212 | . . . 80 57 . . 75 Melee 395 | . . . 43 111 38 66 137 Knockbacks 3 | . . . . . . . 3 Impact 1 | . . . . . . . 1 Kinetic 2 | . . . . . . . 2 Secondary . | . . . . . . . . Self-Inflicted Damage 94 | . . . 55 . . . 39 Shots 2 | . . . 1 . . . 1 Rammed 1 | . . . . . . . 1 Targets Rammed 1 | . . . . . . . 1 Kicked . | . . . . . . . . Crushed . | . . . . . . . . Highest Temperature 350 | . . . 67 28 16 . 350 Average Temperature 75 | . . . 34 12 8 . 156 Received Heat Transfer 1530 | . . . 69 972 120 . 369 Effects 4 | . . . . . . . 4 Shutdowns 1 | . . . . . . . 1 Energy Bleed 1 | . . . . . . . 1 Interference 2 | . . . . . . . 2 Siege Activations . | . . . . . . . . Martial Activations . | . . . . . . . . Shielding Activations . | . . . . . . . . Robots Disrupted . | . . . . . . . . Combat Hostiles . | . . . . . . . . Robots Corrupted . | . . . . . . . . Combat Hostiles . | . . . . . . . . Parts Fried 2 | . . . . . . . 2 Impact Corruptions 2 | . . . . . . . 2 Robots Melted . | . . . . . . . . Combat Hostiles . | . . . . . . . . Parts Melted 3 | . . . 3 . . . . Heat Transferred 387 | . . . 100 . . . 287 Parts Sabotaged . | . . . . . . . . Parts Stolen . | . . . . . . . . Parts Stripped . | . . . . . . . . Power Chain Reactions 1 | . . . . . . . 1 Alert | -11 -10 -10 -9 -8 -7 -6 -5 ------- Run | Yrd Mat Min Mat Mat Fac Fac Fac Maximum Alert Level 2 | . . . . 2 . . 1 Low Security (%) 71 | 100 100 100 100 17 100 100 83 Level 1 21 | . . . . 61 . . 16 Level 2 6 | . . . . 21 . . . Level 3 . | . . . . . . . . Level 4 . | . . . . . . . . Level 5 . | . . . . . . . . High Security . | . . . . . . . . Max Security . | . . . . . . . . Peak Influence 453 | 10 . 70 173 453 193 65 295 Initial 139 | . . . 1 62 139 65 . Average 132 | 1 . 26 58 283 126 30 85 Influence Increases 2555 | 30 . 106 597 933 224 15 650 Destroy 0b10 Robot/C 1380 | . . 60 340 560 160 . 260 Destroy 0b10 Robot/NC 200 | 30 . 5 45 50 20 15 35 Destroy Leader 354 | . . 10 98 142 44 . 60 Allied During Kill 30 | . . . 30 . . . . Disable Machine 135 | . . . 30 30 . . 75 Destroy Structure 231 | . . 16 24 31 . . 160 Lose Combat Pursuer 225 | . . 15 30 120 . . 60 Influence Decreases 2342 | 30 . 100 454 775 396 150 437 Entered New Map 330 | . . . 5 87 168 70 . Time Decay 1332 | 30 . 40 369 458 198 80 157 Lost Part 470 | . . 60 20 80 30 . 280 Lost Ally 60 | . . . 60 . . . . Purge Threat 150 | . . . . 150 . . . Squads Dispatched 12 | . . . 1 4 2 . 5 Investigation 2 | . . . 1 . . . 1 Extermination 2 | . . . . . . . 2 Reinforcement 7 | . . . . 3 2 . 2 Assault 1 | . . . . 1 . . . Garrison . | . . . . . . . . Intercept . | . . . . . . . . Searches Triggered . | . . . . . . . . Construction Impeded 3 | . . . . 1 . . 2 Haulers Reinforced 1 | . . . . . 1 . . Active Scanning Responses . | . . . . . . . . Cargo Convoy Interrupts . | . . . . . . . . Stealth | -11 -10 -10 -9 -8 -7 -6 -5 --------- Run | Yrd Mat Min Mat Mat Fac Fac Fac Distress Signals 9 | . . 1 1 5 . . 2 Communications Jammed . | . . . . . . . . Distress Signals . | . . . . . . . . Times Spotted 133 | . 2 18 22 50 9 . 32 Peak Tracking Total 10 | . 2 10 5 8 4 . 8 Tactical Retreats 10 | . . 2 1 4 . . 3 Traps | -11 -10 -10 -9 -8 -7 -6 -5 ------- Run | Yrd Mat Min Mat Mat Fac Fac Fac Traps Triggered 2 | . . . . . . 1 1 Indirectly . | . . . . . . . . Trap Hack Attempts . | . . . . . . . . Triggered . | . . . . . . . . Disarmed . | . . . . . . . . Reprogrammed . | . . . . . . . . Reused . | . . . . . . . . Traps Extracted . | . . . . . . . . Installed . | . . . . . . . . Triggered . | . . . . . . . . Machines | -11 -10 -10 -9 -8 -7 -6 -5 ---------- Run | Yrd Mat Min Mat Mat Fac Fac Fac Machines Disabled 9 | . . . 2 2 . . 5 Max in Single Turn 3 | . . . 2 1 . . 3 Machines Repaired . | . . . . . . . . Machines Dismantled . | . . . . . . . . Machines Sabotaged . | . . . . . . . . Overloaded Fab Kills . | . . . . . . . . Hacking | -11 -10 -10 -9 -8 -7 -6 -5 --------- Run | Yrd Mat Min Mat Mat Fac Fac Fac Machines Accessed 2 | . . . . 2 . . . Terminals 2 | . . . . 2 . . . Fabricators . | . . . . . . . . Repair Stations . | . . . . . . . . Recycling Units . | . . . . . . . . Scanalyzers . | . . . . . . . . Garrison Access . | . . . . . . . . Total Hacks 7 | . . . . 7 . . . Successful 3 | . . . . 3 . . . Failed 4 | . . . . 4 . . . Catastrophic 3 | . . . . 3 . . . Database Lockouts . | . . . . . . . . Manual 6 | . . . . 6 . . . Terminals 7 | . . . . 7 . . . Fabricators . | . . . . . . . . Repair Stations . | . . . . . . . . Recycling Units . | . . . . . . . . Scanalyzers . | . . . . . . . . Garrison Access . | . . . . . . . . Terminal Hacks 3 | . . . . 3 . . . Alert Level 2 | . . . . 2 . . . Unreport Threat 1 | . . . . 1 . . . Fabricator Hacks . | . . . . . . . . Repair Station Hacks . | . . . . . . . . Recycling Unit Hacks . | . . . . . . . . Scanalyzer . | . . . . . . . . Garrison Access Hacks . | . . . . . . . . Unauthorized Hacks . | . . . . . . . . Terminals . | . . . . . . . . Fabricators . | . . . . . . . . Repair Stations . | . . . . . . . . Recycling Units . | . . . . . . . . Scanalyzers . | . . . . . . . . Garrison Access . | . . . . . . . . Data Cores Recovered . | . . . . . . . . Used . | . . . . . . . . Hacking Detections 2 | . . . . 2 . . . Full Trace Events 1 | . . . . 1 . . . Feedback Events . | . . . . . . . . Feedback Blocked . | . . . . . . . . Robot Schematics Acquired . | . . . . . . . . Robots Built . | . . . . . . . . Authchips . | . . . . . . . . Time . | . . . . . . . . Total Robot Build Rating . | . . . . . . . . Part Schematics Acquired . | . . . . . . . . Parts Built . | . . . . . . . . Authchips . | . . . . . . . . Time . | . . . . . . . . Total Part Build Rating . | . . . . . . . . Parts Repaired . | . . . . . . . . Time . | . . . . . . . . Parts Recycled . | . . . . . . . . Recycled Matter . | . . . . . . . . Retrieved Matter . | . . . . . . . . Retrieved Components . | . . . . . . . . Parts Scanalyzed . | . . . . . . . . Part Schematics Acquired . | . . . . . . . . Parts Damaged . | . . . . . . . . Bothacking | -11 -10 -10 -9 -8 -7 -6 -5 ------------ Run | Yrd Mat Min Mat Mat Fac Fac Fac Used RIF Installer . | . . . . . . . . Robots Hacked . | . . . . . . . . Non-combat . | . . . . . . . . Combat . | . . . . . . . . Robot Hacks Applied . | . . . . . . . . Relay Couplers Released . | . . . . . . . . Fabnet Peak Effective % . | . . . . . . . . Robots Rewired . | . . . . . . . . Allies Hacked . | . . . . . . . . Hacks Repelled . | . . . . . . . . Allies | -11 -10 -10 -9 -8 -7 -6 -5 -------- Run | Yrd Mat Min Mat Mat Fac Fac Fac Total Allies 3 | . . 3 . . . . . Largest Group 3 | . . 3 3 . . . . Highest-Rated Group 40 | . . 40 40 . . . . Highest-Rated Ally 16 | . . 16 16 . . . . Total Orders . | . . . . . . . . Ally Attacks 44 | . . . 44 . . . . Total Damage 394 | . . . 394 . . . . Kills 5 | . . . 5 . . . . Allies Corrupted . | . . . . . . . . Allies Melted . | . . . . . . . . Intel | -11 -10 -10 -9 -8 -7 -6 -5 ------- Run | Yrd Mat Min Mat Mat Fac Fac Fac Active Infowar (turns) 754 | 89 152 36 . . . 156 321 Sensors 477 | . . . . . . 156 321 Terrain 277 | 89 152 36 . . . . . Robot Analysis Total . | . . . . . . . . Derelict Logs Recovered . | . . . . . . . . Drone Launches . | . . . . . . . . Drone Recoveries . | . . . . . . . . Exploration | -11 -10 -10 -9 -8 -7 -6 -5 ------------- Run | Yrd Mat Min Mat Mat Fac Fac Fac Turns Passed 3619 | 212 152 80 983 1140 404 176 472 Spaces Moved 2288 | 88 87 43 555 570 349 187 409 Core 206 | 10 . 16 . 3 . . 177 Treads 361 | 78 87 2 177 . . . 17 Legs 630 | . . 25 169 436 . . . Wheels 1091 | . . . 209 131 349 187 215 Hover . | . . . . . . . . Flight . | . . . . . . . . Fastest Speed 50 | 50 160 50 95 90 80 80 50 Average Speed 114 | 149 160 95 145 134 82 80 71 Slowest Speed 450 | 160 160 160 240 450 95 80 160 Overloaded Moves . | . . . . . . . . Propulsion Burnouts . | . . . . . . . . Robots Hopped . | . . . . . . . . Potential Cave-ins . | . . . . . . . . Cave-ins Triggered . | . . . . . . . . Exploration Rate (%) 22 | 5 21 17 50 52 15 6 13 Regions Visited 7 Branch Regions 1 Pre-discovered Areas . | . . . . . . . . Known Exits Taken . | . . . . . . . . Unknown Exits Taken 7 | 1 1 1 1 1 1 1 . Scrap Searched 1 | . . 1 . . . . . Spaces Dug 6 | . . . . 6 . . . Terrain Destroyed 174 | . . 24 24 36 . . 90 Melee 6 | . . . . 6 . . . Projectile 4 | . . . . . . . 4 AOE 164 | . . 24 24 30 . . 86 Terrain Rammed . | . . . . . . . . Walls Destroyed . | . . . . . . . . Machines Disabled . | . . . . . . . . Actions | -11 -10 -10 -9 -8 -7 -6 -5 --------- Run | Yrd Mat Min Mat Mat Fac Fac Fac Total 2889 | 123 92 61 686 803 415 209 500 Wait 199 | . . . 49 102 28 10 10 Move 2281 | 87 86 42 554 569 348 186 409 Hop . | . . . . . . . . Pick Up 40 | 6 2 . 19 7 4 . 2 Fast Attach 61 | 8 . 1 15 17 3 2 15 Attach 14 | . . 5 . 2 2 . 5 Detach 2 | . . . 1 1 . . . Swap 14 | . . . 3 5 . . 6 Drop 39 | 1 . . 20 15 2 . 1 Fire 73 | 21 4 13 5 8 . . 22 Melee 157 | . . . 20 77 28 3 29 Ram 1 | . . . . . . . 1 Kick . | . . . . . . . . Crush . | . . . . . . . . Escape Stasis 8 | . . . . . . 8 . Rewire . | . . . . . . . . Trap . | . . . . . . . . Miscellaneous . | . . . . . . . . Route ------- -11/Scrapyard -10/Materials -10/Mines -9/Materials -8/Materials -7/Factory -6/Factory -5/Factory History --------- Turn | Location | Event 3 | -11/Scrapyard | Discovered new exit (range 16) 213 | -11/Scrapyard | Entered Materials 309 | -10/Materials | Build established: Mutant 320 | -10/Materials | Discovered new exit (range 13) 365 | -10/Materials | Entered Mines 366 | -10/Mines | Assembled infested the area 401 | -10/Mines | Core integrity fell below 50% 401 | -10/Mines | Released all parts (2) 417 | -10/Mines | Discovered new exit (range 15) 431 | -10/Mines | Lost 6 parts (1p2n3w) 438 | -10/Mines | Assisted by bots powering up and referring to "LRC-V3" 445 | -10/Mines | Entered Materials 445 | -9/Materials | Accompanied by 3 allies 445 | -9/Materials | Evolved 2 slots: Weapon x2 1387 | -9/Materials | Discovered new exit (range 4) 1428 | -9/Materials | Entered another Materials area 1428 | -8/Materials | Evolved 2 slots: Propulsion x1, Utility x1 1646 | -8/Materials | Destroyed 7 combat bots 1701 | -8/Materials | Lost 4 parts (1p3n) 1828 | -8/Materials | First assault squad dispatched 2383 | -8/Materials | Discovered new exit (range 16) 2568 | -8/Materials | Entered Factory 2568 | -7/Factory | Evolved 2 slots: Propulsion x1, Utility x1 2812 | -7/Factory | Lost 3 parts (1p1n1u) 2954 | -7/Factory | Discovered new exit (range 15) 2972 | -7/Factory | Entered another Factory area 2972 | -6/Factory | Evolved 2 slots: Propulsion x1, Utility x1 3141 | -6/Factory | Discovered new exit (range 10) 3148 | -6/Factory | Entered another Factory area 3148 | -5/Factory | Evolved 2 slots: Power x1, Utility x1 3234 | -5/Factory | Build established: Scavenger-Gladiator 3349 | -5/Factory | Lost 9 parts (1p5n2u1w) 3483 | -5/Factory | Core integrity fell below 50% 3500 | -5/Factory | Lost 9 parts (1p4n1u3w) 3527 | -5/Factory | Released all parts (3) 3556 | -5/Factory | Lost 13 parts (2p5n1u5w) 3586 | -5/Factory | Core integrity fell below 20% 3610 | -5/Factory | Released all parts (1) 3620 | -5/Factory | Destroyed by S-27 Virus with Autogun Last Messages --------------- 03559_ ALERT: Potential suspicious activity detected, Programmers report to Factory Zone 8G. 03559_ ALERT: Construction progress impeded, dispatching reinforcements to local area. 03583_ S-27 Virus destroyed. 03601_ K-01 Serf cleans the Fabricator. 03606_ Slug penetrates Wall. 03607_ Acquired Hvy. Phase Cannon. 03609_ Penetrated by Slug. 03610_ Released Hvy. Phase Cannon. 03613_ Slug penetrates K-01 Serf. 03613_ K-01 Serf suffers critical hit (Destroy). 03613_ Fabricator disabled. 03613_ K-01 Serf collects debris. 03615_ K-01 Serf destroyed. 03618_ Triggered Alarm Trap. 03618_ An alarm sounds. 03618_ ALERT: Alarm triggered, dispatching investigation squad. Map ----- +----------------------------------------------------+ | ?????????????????????????????????????????????????? | | ?????????????????????????????????????????????????? | | ?????????????????????????????????????????????????? | | ?????????????????????????????????????????????????? | | ?????????????????????????????????????????????????? | | ?????????????????????????????????????????????????? | | ?????????????????????????????????????????????????? | | ?????????????????????????????????????????????????? | | ????????????##########???????????????????????????? | | ????????????# #???????????????????????????? | | ????????????# #???????????????????????????? | | ????????????# #???????????????????????????? | | ????????????# #???????????????????????????? | | ????????????# #???????????????????????????? | | ???????????## ]] #???????????????????????????? | | ???????????# ]] #???????????????????????????? | | ????????????# ]] #???????????????????????????? | | ????????????# #???????????????????????????? | | ????????????# #???????????????????????????? | | ????????????#! """ #???????????????????????????? | | ????????????# """ ########????????????????????? | | ????????????#=%*""" ## #????????????????????? | | ????????????#" ## ###??????????????????? | | ????????????#" """ /s ???????????????????? | | ????????????#"F """ ## #????????????????????? | | ????????????#"" """ ## @ #????????????????????? | | ????????????# ## #????????????????????? | | ????????????#+###+##### ############?????????? | | ????????????# ?????????? | | ????????????# ?????????? | | ????????????# ????????? | | ????????????+ ????????? | | ????????????# ???????? | | ????????????# ???????? | | ????????????# ???????? | | ????????????#####+#+######+############??????????? | | ??????????????????? ??# [! #???????????????? | | ??????????????????? ??# !! #???????????????? | | ??????????????????? ??# #???????????????? | | ???????????????????"""?# #???????????????? | | ???????????????????"""?# #???????????????? | | ???????????????????????# #???????????????? | | ???????????????????????# #???????????????? | | ???????????????????????# #???????????????? | | ???????????????????????# / #???????????????? | | ???????????????????????# #???????????????? | | ???????????????????????# #???????????????? | | ???????????????????????# #???????????????? | | ???????????????????????# #???????????????? | | ???????????????????????# #???????????????? | +----------------------------------------------------+ Best States ------------- Heat Dissipation 40 Energy Generation 31 Energy Capacity 475 Matter Stores 300 Matter Capacity 300 Sight Range 16 Robot Scan Range 16 Terrain Scan Range 16 Terrain Scan Density 10 Additional Mass Support 6 Armor Coverage 450 Melee Speed Boost 20 Evasion (%) 55 Core Analysis 6 Recoil Reduction 2 Item Schematics ----------------- None Robot Schematics ------------------ None Fabricated ------------ Nothing Repaired ---------- Nothing Alien Tech Used ----------------- None Achievements -------------- Ambidextrous Everything Is Under Control More Dakka Please Challenges ------------ None Game ------ Seed ElectronFlyingRail Manual? 0 Play Time 00:40:35 Cumulative 15.8 hours Start 2025.07.24 @ 22:32:54 End 2025.07.24 @ 23:11:19 Sessions 1 Manual Loads 0 Difficulty Rogue Special Mode None Game No. 22 Rogue 22 Adventurer 0 Explorer 0 Win Type - Total 0 Types 0/0/0/0/0/0/0/0/0/0 Lore% 19 Gallery% 22 Achievement% 21 Wizard Run 0 Options --------- Layout 1 ASCII 0 Keyboard 0 Movement Numpad Keybinds 0 Fullscreen 1 Font 24/Smallcaps Map View 50x35 Zoom Use 0% Tactical HUD 1 Map Filters NONE Filters NONE Steam 1 RUN: d90b6b4d-75d7-4375-97e1-8e75d755ffcb